[Event "*** Titled Tuesday Blitz"]
[Site "Chess.com"]
[Date "2019.03.05"]
[Round "10"]
[White "Maili15"]
[Black "WPWPWP-2015"]
[Result "0-1"]
[WhiteElo "2268"]
[BlackElo "2384"]
[TimeControl "180+2"]
[EndTime "15:32:22 PST"]
[Termination "WPWPWP-2015 won by checkmate"]

1. d4 {[%clk 0:03:01.9]} 1... Nf6 {[%clk 0:02:54.2]} 2. c4 {[%clk 0:03:03.1]}
2... e6 {[%clk 0:02:54.9]} 3. Nc3 {[%clk 0:03:04.7]} 3... Bb4 {[%clk 0:02:55.2]}
4. e3 {[%clk 0:03:06]} 4... O-O {[%clk 0:02:54.8]} 5. Bd3 {[%clk 0:03:07.5]}
5... d5 {[%clk 0:02:53]} 6. Nf3 {[%clk 0:03:08]} 6... c5 {[%clk 0:02:10.6]} 7.
O-O {[%clk 0:03:08.4]} 7... Nc6 {[%clk 0:02:10.9]} 8. a3 {[%clk 0:03:06.2]} 8...
Ba5 {[%clk 0:02:11.2]} 9. Ne5 {[%clk 0:02:30.6]} 9... cxd4 {[%clk 0:02:03.6]}
10. Nxc6 {[%clk 0:02:30.6]} 10... bxc6 {[%clk 0:02:03.9]} 11. exd4 {[%clk
0:02:32.2]} 11... Ba6 {[%clk 0:02:01.5]} 12. Qe2 {[%clk 0:02:21.7]} 12... Nd7
{[%clk 0:01:49.9]} 13. Bf4 {[%clk 0:02:11]} 13... Bc7 {[%clk 0:01:49.2]} 14.
Bxc7 {[%clk 0:01:53.1]} 14... Qxc7 {[%clk 0:01:48.5]} 15. Rac1 {[%clk
0:01:54.5]} 15... Qf4 {[%clk 0:01:46.4]} 16. Rfd1 {[%clk 0:01:47.5]} 16... Rab8
{[%clk 0:01:44.7]} 17. b4 {[%clk 0:01:45.1]} 17... g6 {[%clk 0:01:40.3]} 18. b5
{[%clk 0:01:36]} 18... dxc4 {[%clk 0:01:40.1]} 19. Bxc4 {[%clk 0:01:37.2]} 19...
cxb5 {[%clk 0:01:40.3]} 20. Nxb5 {[%clk 0:01:25.8]} 20... Nb6 {[%clk 0:01:38.4]}
21. Bd3 {[%clk 0:01:24.9]} 21... Nd5 {[%clk 0:01:33.7]} 22. g3 {[%clk
0:01:15.5]} 22... Qf6 {[%clk 0:01:29]} 23. Nd6 {[%clk 0:01:08.6]} 23... Bxd3
{[%clk 0:01:27.6]} 24. Qxd3 {[%clk 0:01:06.5]} 24... Rb2 {[%clk 0:01:25.7]} 25.
Rc2 {[%clk 0:01:02.2]} 25... Rfb8 {[%clk 0:01:19.3]} 26. Rdc1 {[%clk 0:00:58.7]}
26... Rxc2 {[%clk 0:01:16]} 27. Rxc2 {[%clk 0:00:45.7]} 27... Qg5 {[%clk
0:01:15.6]} 28. Qf3 {[%clk 0:00:27.1]} 28... Qe7 {[%clk 0:00:58.3]} 29. Ne4
{[%clk 0:00:27.2]} 29... Kg7 {[%clk 0:00:53.4]} 30. Rc5 {[%clk 0:00:20.5]} 30...
Rd8 {[%clk 0:00:44]} 31. h4 {[%clk 0:00:20.9]} 31... h5 {[%clk 0:00:43.9]} 32.
Ng5 {[%clk 0:00:20.9]} 32... Nf6 {[%clk 0:00:40.7]} 33. Rc4 {[%clk 0:00:19]}
33... Rd7 {[%clk 0:00:38.2]} 34. Ra4 {[%clk 0:00:18.1]} 34... Qd6 {[%clk
0:00:35.6]} 35. Rb4 {[%clk 0:00:17.9]} 35... Qd5 {[%clk 0:00:33.5]} 36. Qxd5
{[%clk 0:00:16.8]} 36... Nxd5 {[%clk 0:00:34]} 37. Ra4 {[%clk 0:00:16]} 37...
Nc3 {[%clk 0:00:33.5]} 38. Ra6 {[%clk 0:00:11.5]} 38... Ne2+ {[%clk 0:00:33.3]}
39. Kf1 {[%clk 0:00:11.3]} 39... Nxd4 {[%clk 0:00:34.4]} 40. Ke1 {[%clk
0:00:10.6]} 40... Nc2+ {[%clk 0:00:27.7]} 41. Ke2 {[%clk 0:00:11.3]} 41... Nd4+
{[%clk 0:00:28.9]} 42. Ke3 {[%clk 0:00:11.9]} 42... Nb5 {[%clk 0:00:26.1]} 43.
Ne4 {[%clk 0:00:09.8]} 43... Nc7 {[%clk 0:00:26.8]} 44. Ra5 {[%clk 0:00:08.2]}
44... Nd5+ {[%clk 0:00:27.3]} 45. Ke2 {[%clk 0:00:07.9]} 45... Rb7 {[%clk
0:00:25.1]} 46. Nd6 {[%clk 0:00:06.3]} 46... Rb2+ {[%clk 0:00:20.3]} 47. Kf3
{[%clk 0:00:06.6]} 47... Rb3+ {[%clk 0:00:20.1]} 48. Kg2 {[%clk 0:00:05.7]}
48... Rd3 {[%clk 0:00:16.8]} 49. Ne4 {[%clk 0:00:04.4]} 49... Rd4 {[%clk
0:00:15.1]} 50. Kf3 {[%clk 0:00:05.2]} 50... Rd3+ {[%clk 0:00:15.4]} 51. Kg2
{[%clk 0:00:05.7]} 51... Rd4 {[%clk 0:00:16]} 52. Kf3 {[%clk 0:00:06.6]} 52...
f5 {[%clk 0:00:16.1]} 53. Ng5 {[%clk 0:00:07.4]} 53... Kf6 {[%clk 0:00:16]} 54.
Rxa7 {[%clk 0:00:07.4]} 54... Rd3+ {[%clk 0:00:16.7]} 55. Kg2 {[%clk 0:00:07.7]}
55... Rd2 {[%clk 0:00:16.7]} 56. Rf7+ {[%clk 0:00:08.2]} 56... Ke5 {[%clk
0:00:16.7]} 57. Rg7 {[%clk 0:00:09.4]} 57... Ra2 {[%clk 0:00:15]} 58. Rxg6
{[%clk 0:00:09.8]} 58... Nc7 {[%clk 0:00:16.2]} 59. Rg7 {[%clk 0:00:10.6]} 59...
Nb5 {[%clk 0:00:16.3]} 60. Re7 {[%clk 0:00:11]} 60... Nd4 {[%clk 0:00:15.9]} 61.
Rh7 {[%clk 0:00:11.7]} 61... Rxa3 {[%clk 0:00:15.4]} 62. Rxh5 {[%clk 0:00:12.2]}
62... Ra2 {[%clk 0:00:15.6]} 63. Rh6 {[%clk 0:00:12.8]} 63... Kd5 {[%clk
0:00:15.2]} 64. h5 {[%clk 0:00:13.6]} 64... e5 {[%clk 0:00:16.4]} 65. Rf6 {[%clk
0:00:11.7]} 65... e4 {[%clk 0:00:17.1]} 66. Kg1 {[%clk 0:00:10.6]} 66... Ne2+
{[%clk 0:00:16.5]} 67. Kf1 {[%clk 0:00:11.8]} 67... Nd4 {[%clk 0:00:16.2]} 68.
h6 {[%clk 0:00:12]} 68... Ke5 {[%clk 0:00:16.2]} 69. Rf8 {[%clk 0:00:12.5]}
69... Nf3 {[%clk 0:00:13.3]} 70. Nxf3+ {[%clk 0:00:11.9]} 70... exf3 {[%clk
0:00:14.1]} 71. Kg1 {[%clk 0:00:11.3]} 71... Ra1+ {[%clk 0:00:14.3]} 72. Kh2
{[%clk 0:00:12.3]} 72... Ra7 {[%clk 0:00:14.8]} 73. Rh8 {[%clk 0:00:11.7]} 73...
Kf6 {[%clk 0:00:15]} 74. h7 {[%clk 0:00:12.1]} 74... Kg6 {[%clk 0:00:15.7]} 75.
Rf8 {[%clk 0:00:10.8]} 75... Rxh7+ {[%clk 0:00:14.8]} 76. Kg1 {[%clk 0:00:11.9]}
76... Ra7 {[%clk 0:00:14.9]} 77. Re8 {[%clk 0:00:11.2]} 77... Ra1+ {[%clk
0:00:15.5]} 78. Kh2 {[%clk 0:00:12]} 78... Rf1 {[%clk 0:00:15.9]} 79. Rg8+
{[%clk 0:00:12.9]} 79... Kf6 {[%clk 0:00:16.3]} 80. Kh3 {[%clk 0:00:12.7]} 80...
Rh1# {[%clk 0:00:15.5]} 0-1

[Event "*** Titled Tuesday Blitz"]
[Site "Chess.com"]
[Date "2019.03.05"]
[Round "10"]
[White "Perecke"]
[Black "M1711"]
[Result "0-1"]
[WhiteElo "2044"]
[BlackElo "2492"]
[TimeControl "180+2"]
[EndTime "15:32:27 PST"]
[Termination "M1711 won by resignation"]

1. e4 {[%clk 0:03:01.9]} 1... c6 {[%clk 0:03:01]} 2. Nf3 {[%clk 0:02:28.6]} 2...
d5 {[%clk 0:03:01.7]} 3. Nc3 {[%clk 0:02:28.7]} 3... dxe4 {[%clk 0:03:02.4]} 4.
Nxe4 {[%clk 0:02:29.3]} 4... Nf6 {[%clk 0:03:04]} 5. Nxf6+ {[%clk 0:02:30.3]}
5... exf6 {[%clk 0:03:05.9]} 6. Bc4 {[%clk 0:02:31.4]} 6... Bd6 {[%clk
0:03:07.3]} 7. d4 {[%clk 0:02:32.5]} 7... O-O {[%clk 0:03:08.7]} 8. c3 {[%clk
0:02:33.6]} 8... Re8+ {[%clk 0:03:09.7]} 9. Be3 {[%clk 0:02:33.6]} 9... Nd7
{[%clk 0:03:10.9]} 10. O-O {[%clk 0:02:34.4]} 10... Nf8 {[%clk 0:03:12.2]} 11.
Qb3 {[%clk 0:02:34.5]} 11... Ne6 {[%clk 0:03:09.4]} 12. Rad1 {[%clk 0:02:32.4]}
12... Qc7 {[%clk 0:03:07.8]} 13. d5 {[%clk 0:02:33.6]} 13... cxd5 {[%clk
0:03:04.5]} 14. Bxd5 {[%clk 0:02:35.5]} 14... Nf4 {[%clk 0:03:05.8]} 15. Bxf7+
{[%clk 0:02:30.2]} 15... Kh8 {[%clk 0:03:05.1]} 16. Bxe8 {[%clk 0:02:26.1]}
16... Bg4 {[%clk 0:03:01.5]} 17. Bb5 {[%clk 0:02:14.2]} 17... Bxf3 {[%clk
0:02:43]} 18. gxf3 {[%clk 0:02:16.1]} 18... Nh5 {[%clk 0:02:26.2]} 19. Qe6
{[%clk 0:02:11.7]} 19... Bxh2+ {[%clk 0:02:25.5]} 20. Kh1 {[%clk 0:02:12.8]}
20... Be5 {[%clk 0:02:12.9]} 21. Rd7 {[%clk 0:02:11.5]} 21... Qa5 {[%clk
0:02:11.9]} 22. Bd3 {[%clk 0:02:05]} 22... Qa4 {[%clk 0:01:52.4]} 23. c4 {[%clk
0:01:47]} 23... Rg8 {[%clk 0:01:23.3]} 24. f4 {[%clk 0:01:07.6]} 24... Bxf4
{[%clk 0:01:09.5]} 25. Qf5 {[%clk 0:00:22.9]} 25... g6 {[%clk 0:01:07]} 26. Qe6
{[%clk 0:00:22.3]} 26... Bxe3 {[%clk 0:00:53.3]} 27. Qf7 {[%clk 0:00:17.3]}
27... Qc6+ {[%clk 0:00:42.1]} 28. Kg1 {[%clk 0:00:18.4]} 28... Ng7 {[%clk
0:00:37.3]} 29. fxe3 {[%clk 0:00:16.8]} 29... f5 {[%clk 0:00:36.8]} 30. Re7
{[%clk 0:00:13.2]} 30... Qd6 {[%clk 0:00:35.9]} 31. Qd5 {[%clk 0:00:06.8]} 31...
Qxe7 {[%clk 0:00:34.5]} 32. c5 {[%clk 0:00:07.9]} 32... Qxe3+ {[%clk 0:00:34.1]}
33. Kh1 {[%clk 0:00:07.9]} 33... Qh3+ {[%clk 0:00:30.8]} 34. Kg1 {[%clk
0:00:09.3]} 34... Qg3+ {[%clk 0:00:32]} 35. Kh1 {[%clk 0:00:10.5]} 35... Qc7
{[%clk 0:00:29.6]} 36. Bc4 {[%clk 0:00:11]} 36... Rd8 {[%clk 0:00:29.5]} 37. Qg2
{[%clk 0:00:04.5]} 37... Qxc5 {[%clk 0:00:29.1]} 38. Be2 {[%clk 0:00:04.8]}
38... Qc2 {[%clk 0:00:26.2]} 39. Re1 {[%clk 0:00:05.1]} 39... Qd2 {[%clk
0:00:26.2]} 40. Qf2 {[%clk 0:00:06.3]} 40... Qh6+ {[%clk 0:00:25.8]} 41. Kg1
{[%clk 0:00:06.9]} 41... Qg5+ {[%clk 0:00:26.9]} 42. Kf1 {[%clk 0:00:06.6]}
42... Nh5 {[%clk 0:00:24.3]} 43. Bxh5 {[%clk 0:00:07]} 43... Qxh5 {[%clk
0:00:22.8]} 44. Qe3 {[%clk 0:00:06.4]} 44... Qh1+ {[%clk 0:00:22.2]} 45. Kf2
{[%clk 0:00:05.8]} 45... Qh2+ {[%clk 0:00:22.2]} 46. Kf1 {[%clk 0:00:06.5]}
46... Qxb2 {[%clk 0:00:18.8]} 47. Qe7 {[%clk 0:00:04.5]} 47... Qd4 {[%clk
0:00:14.6]} 48. Qe6 {[%clk 0:00:04.3]} 48... Qd3+ {[%clk 0:00:14.9]} 49. Kg1
{[%clk 0:00:04.8]} 49... Qd4+ {[%clk 0:00:15.7]} 50. Kf1 {[%clk 0:00:05.6]}
50... a5 {[%clk 0:00:12.9]} 51. Qe7 {[%clk 0:00:05.2]} 51... Qd3+ {[%clk
0:00:13]} 52. Kg1 {[%clk 0:00:06.1]} 52... Qd4+ {[%clk 0:00:13.7]} 53. Kf1
{[%clk 0:00:07.2]} 53... a4 {[%clk 0:00:15.3]} 54. Qxb7 {[%clk 0:00:06.3]} 54...
Qd3+ {[%clk 0:00:15]} 55. Kg1 {[%clk 0:00:07.2]} 55... Qg3+ {[%clk 0:00:15.9]}
56. Kf1 {[%clk 0:00:07.9]} 56... Qf4+ {[%clk 0:00:17.1]} 57. Kg1 {[%clk
0:00:08.6]} 57... Qd4+ {[%clk 0:00:16.2]} 58. Kf1 {[%clk 0:00:09.2]} 58... Qc3
{[%clk 0:00:09.2]} 59. Qe7 {[%clk 0:00:08.3]} 59... Qd3+ {[%clk 0:00:06.7]} 60.
Kg1 {[%clk 0:00:09.4]} 60... Qd6 {[%clk 0:00:07.8]} 61. Qe2 {[%clk 0:00:08.9]}
61... Qf6 {[%clk 0:00:08.2]} 62. Qb5 {[%clk 0:00:08.5]} 62... Kg7 {[%clk
0:00:04.6]} 63. Qb7+ {[%clk 0:00:08.3]} 63... Kh6 {[%clk 0:00:05.7]} 64. Qh1+
{[%clk 0:00:08.8]} 64... Kg7 {[%clk 0:00:06.5]} 65. Qb7+ {[%clk 0:00:09.3]}
65... Kh8 {[%clk 0:00:06.5]} 66. Qc7 {[%clk 0:00:08.8]} 66... Qd4+ {[%clk
0:00:07]} 67. Kf1 {[%clk 0:00:09.6]} 67... Qd3+ {[%clk 0:00:07.9]} 68. Kg1
{[%clk 0:00:10.1]} 68... Qd4+ {[%clk 0:00:09.4]} 69. Kf1 {[%clk 0:00:11.1]}
69... Rd7 {[%clk 0:00:09.4]} 70. Qb8+ {[%clk 0:00:07.5]} 70... Kg7 {[%clk
0:00:10.2]} 71. Qa8 {[%clk 0:00:04.1]} 71... Qf4+ {[%clk 0:00:08.1]} 72. Kg1
{[%clk 0:00:04.6]} 72... Rd2 {[%clk 0:00:04.4]} 73. Qb7+ {[%clk 0:00:04.9]}
73... Kh6 {[%clk 0:00:04.6]} 74. Qh1+ {[%clk 0:00:05.5]} 74... Kg5 {[%clk
0:00:06]} 75. Qd5 {[%clk 0:00:05.4]} 75... Qf2+ {[%clk 0:00:06.5]} 0-1

[Event "*** Titled Tuesday Blitz"]
[Site "Chess.com"]
[Date "2019.03.05"]
[Round "10"]
[White "Al_Shima"]
[Black "ShadyH9"]
[Result "0-1"]
[WhiteElo "2420"]
[BlackElo "2319"]
[TimeControl "180+2"]
[EndTime "15:32:45 PST"]
[Termination "ShadyH9 won by resignation"]

1. e4 {[%clk 0:03:01.9]} 1... c5 {[%clk 0:03:00.2]} 2. Nf3 {[%clk 0:03:02.6]}
2... Nc6 {[%clk 0:03:00.9]} 3. d4 {[%clk 0:03:03.6]} 3... cxd4 {[%clk
0:03:02.8]} 4. Nxd4 {[%clk 0:03:04.8]} 4... g6 {[%clk 0:03:04.1]} 5. Nc3 {[%clk
0:03:02.1]} 5... Bg7 {[%clk 0:03:04.7]} 6. Be3 {[%clk 0:03:02.9]} 6... Nf6
{[%clk 0:03:05.3]} 7. f3 {[%clk 0:03:01.8]} 7... O-O {[%clk 0:03:04.2]} 8. Qd2
{[%clk 0:03:02.6]} 8... d5 {[%clk 0:03:03.5]} 9. O-O-O {[%clk 0:02:35.5]} 9...
dxe4 {[%clk 0:02:59.4]} 10. Nxc6 {[%clk 0:02:20.1]} 10... Qxd2+ {[%clk
0:02:58.6]} 11. Rxd2 {[%clk 0:02:10.4]} 11... bxc6 {[%clk 0:02:58.1]} 12. Nxe4
{[%clk 0:02:10.8]} 12... Nxe4 {[%clk 0:02:49.4]} 13. fxe4 {[%clk 0:02:12.7]}
13... Be6 {[%clk 0:02:39.8]} 14. b3 {[%clk 0:01:53.2]} 14... a5 {[%clk
0:02:32.3]} 15. a4 {[%clk 0:01:53.8]} 15... Bc3 {[%clk 0:02:13.6]} 16. Rd3
{[%clk 0:01:54]} 16... Bb4 {[%clk 0:02:14.3]} 17. Bd4 {[%clk 0:01:49.9]} 17...
c5 {[%clk 0:02:12.7]} 18. Bb2 {[%clk 0:01:44.1]} 18... c4 {[%clk 0:02:13]} 19.
Rg3 {[%clk 0:01:36]} 19... Rfd8 {[%clk 0:01:43.8]} 20. Be2 {[%clk 0:01:16.1]}
20... Rac8 {[%clk 0:01:02.3]} 21. bxc4 {[%clk 0:00:47.6]} 21... Bxc4 {[%clk
0:00:59.1]} 22. Bg4 {[%clk 0:00:32.6]} 22... e6 {[%clk 0:00:37]} 23. Rd1 {[%clk
0:00:29.6]} 23... Rxd1+ {[%clk 0:00:28.3]} 24. Kxd1 {[%clk 0:00:29.5]} 24...
Rd8+ {[%clk 0:00:26.3]} 25. Kc1 {[%clk 0:00:30.3]} 25... h5 {[%clk 0:00:18.9]}
26. Bf3 {[%clk 0:00:12.8]} 26... Bd2+ {[%clk 0:00:18.4]} 27. Kb1 {[%clk
0:00:13.6]} 27... Bf4 {[%clk 0:00:19.2]} 28. Rh3 {[%clk 0:00:14.8]} 28... Rd2
{[%clk 0:00:11.2]} 29. g4 {[%clk 0:00:15.3]} 29... Rf2 {[%clk 0:00:09.5]} 30.
Bc3 {[%clk 0:00:11.8]} 30... h4 {[%clk 0:00:05.5]} 31. Bd4 {[%clk 0:00:11]}
31... Rf1+ {[%clk 0:00:05.7]} 32. Kb2 {[%clk 0:00:12]} 32... g5 {[%clk
0:00:06.7]} 33. e5 {[%clk 0:00:12.7]} 33... Re1 {[%clk 0:00:06.9]} 34. Bc6
{[%clk 0:00:11.5]} 34... Bxe5 {[%clk 0:00:06.5]} 35. Bxe5 {[%clk 0:00:12]} 35...
Rxe5 {[%clk 0:00:08.2]} 36. Rf3 {[%clk 0:00:12.6]} 36... Be2 {[%clk 0:00:08.4]}
37. Rf2 {[%clk 0:00:13.3]} 37... Bxg4 {[%clk 0:00:09.2]} 38. Rg2 {[%clk
0:00:14.6]} 38... Be2 {[%clk 0:00:07.3]} 39. Kc3 {[%clk 0:00:13.9]} 39... Kg7
{[%clk 0:00:07.6]} 40. Kd4 {[%clk 0:00:14.8]} 40... f6 {[%clk 0:00:08.6]} 41. c4
{[%clk 0:00:15.2]} 41... Bf1 {[%clk 0:00:08]} 42. Rf2 {[%clk 0:00:15.9]} 42...
Bh3 {[%clk 0:00:07.9]} 43. c5 {[%clk 0:00:16.2]} 43... Bf5 {[%clk 0:00:07.2]}
44. Bd7 {[%clk 0:00:17]} 44... Kf8 {[%clk 0:00:07.3]} 45. c6 {[%clk 0:00:17.3]}
45... Ke7 {[%clk 0:00:08.2]} 46. Rb2 {[%clk 0:00:18]} 46... Kd6 {[%clk
0:00:08.6]} 47. Rb7 {[%clk 0:00:17.4]} 47... Rd5+ {[%clk 0:00:09.5]} 48. Ke3
{[%clk 0:00:17.8]} 48... Rc5 {[%clk 0:00:10.2]} 49. Be8 {[%clk 0:00:18.5]} 49...
Rc3+ {[%clk 0:00:10.5]} 50. Kd2 {[%clk 0:00:18.1]} 50... Rc2+ {[%clk 0:00:11.5]}
51. Ke3 {[%clk 0:00:19.4]} 51... e5 {[%clk 0:00:11.6]} 52. Rf7 {[%clk
0:00:18.9]} 52... Ke6 {[%clk 0:00:10.1]} 53. Ra7 {[%clk 0:00:16.8]} 53... Kd6
{[%clk 0:00:09.2]} 54. Rf7 {[%clk 0:00:17.5]} 54... Ke6 {[%clk 0:00:09.9]} 55.
Ra7 {[%clk 0:00:18.3]} 55... Bh3 {[%clk 0:00:08.9]} 56. Bd7+ {[%clk 0:00:18.7]}
56... Kd6 {[%clk 0:00:09.2]} 57. Bxh3 {[%clk 0:00:19.4]} 57... Rc3+ {[%clk
0:00:10.4]} 58. Ke4 {[%clk 0:00:19.9]} 58... Rxh3 {[%clk 0:00:11]} 59. Rf7
{[%clk 0:00:19.7]} 59... Rc3 {[%clk 0:00:09.8]} 60. Rxf6+ {[%clk 0:00:20.4]}
60... Kc7 {[%clk 0:00:10.7]} 61. Rf5 {[%clk 0:00:21.3]} 61... Kxc6 {[%clk
0:00:09.9]} 62. Rxg5 {[%clk 0:00:21.5]} 62... Rc4+ {[%clk 0:00:10.3]} 63. Kxe5
{[%clk 0:00:19.4]} 63... Rxa4 {[%clk 0:00:10.4]} 64. Rg1 {[%clk 0:00:13.9]}
64... Kc5 {[%clk 0:00:10.4]} 65. Rc1+ {[%clk 0:00:14.2]} 65... Rc4 {[%clk
0:00:11.1]} 66. Rg1 {[%clk 0:00:12.8]} 66... a4 {[%clk 0:00:11.8]} 67. Rg8
{[%clk 0:00:13.3]} 67... a3 {[%clk 0:00:12.2]} 68. Ra8 {[%clk 0:00:14]} 68...
Kb4 {[%clk 0:00:13.1]} 69. Kd5 {[%clk 0:00:12.1]} 69... Rf4 {[%clk 0:00:13]} 70.
Rb8+ {[%clk 0:00:12]} 70... Kc3 {[%clk 0:00:13.6]} 71. Rc8+ {[%clk 0:00:10.9]}
71... Kb2 {[%clk 0:00:13.7]} 72. Rb8+ {[%clk 0:00:11.6]} 72... Kc2 {[%clk
0:00:14.3]} 73. Rc8+ {[%clk 0:00:12.3]} 73... Kb3 {[%clk 0:00:15.2]} 74. Kc5
{[%clk 0:00:09.2]} 74... Ra4 {[%clk 0:00:14.3]} 75. Rb8+ {[%clk 0:00:09]} 75...
Kc2 {[%clk 0:00:14.2]} 76. Rf8 {[%clk 0:00:08.1]} 76... a2 {[%clk 0:00:14.6]}
77. Rf2+ {[%clk 0:00:08.6]} 77... Kd3 {[%clk 0:00:15.3]} 78. Rf3+ {[%clk
0:00:08.9]} 78... Ke2 {[%clk 0:00:16]} 0-1

[Event "*** Titled Tuesday Blitz"]
[Site "Chess.com"]
[Date "2019.03.05"]
[Round "10"]
[White "Siemba"]
[Black "politeplayer"]
[Result "0-1"]
[WhiteElo "2111"]
[BlackElo "2096"]
[TimeControl "180+2"]
[EndTime "15:32:52 PST"]
[Termination "politeplayer won on time"]

1. e4 {[%clk 0:03:01.9]} 1... e5 {[%clk 0:02:59.2]} 2. Nf3 {[%clk 0:03:02.3]}
2... Nc6 {[%clk 0:02:59]} 3. d4 {[%clk 0:03:01.1]} 3... exd4 {[%clk 0:02:58.5]}
4. Nxd4 {[%clk 0:03:01.9]} 4... Nf6 {[%clk 0:02:59.9]} 5. Nxc6 {[%clk
0:03:00.6]} 5... bxc6 {[%clk 0:02:59.8]} 6. e5 {[%clk 0:03:02.1]} 6... Qe7
{[%clk 0:03:00.8]} 7. Qe2 {[%clk 0:03:03]} 7... Nd5 {[%clk 0:03:01.4]} 8. h4
{[%clk 0:03:04.6]} 8... a5 {[%clk 0:02:51.6]} 9. g3 {[%clk 0:03:04.9]} 9... Ba6
{[%clk 0:02:42.9]} 10. c4 {[%clk 0:03:04.8]} 10... Nb6 {[%clk 0:02:37.4]} 11. b3
{[%clk 0:03:03.4]} 11... a4 {[%clk 0:02:18]} 12. Bb2 {[%clk 0:03:02.6]} 12...
axb3 {[%clk 0:01:32.2]} 13. axb3 {[%clk 0:03:04.5]} 13... Qb4+ {[%clk
0:01:29.3]} 14. Nd2 {[%clk 0:03:03.2]} 14... Bc5 {[%clk 0:01:06.8]} 15. Bg2
{[%clk 0:02:34.9]} 15... O-O {[%clk 0:00:57.8]} 16. O-O {[%clk 0:02:34.9]} 16...
d5 {[%clk 0:00:42.5]} 17. exd6 {[%clk 0:02:33.4]} 17... cxd6 {[%clk 0:00:24.6]}
18. Bxc6 {[%clk 0:02:26]} 18... Ra7 {[%clk 0:00:16.9]} 19. Be4 {[%clk
0:02:23.8]} 19... d5 {[%clk 0:00:16.4]} 20. Bc2 {[%clk 0:01:58.8]} 20... dxc4
{[%clk 0:00:13.6]} 21. Qe4 {[%clk 0:01:57]} 21... f5 {[%clk 0:00:11.6]} 22. Qe6+
{[%clk 0:01:57.8]} 22... Kh8 {[%clk 0:00:12.6]} 23. Qe5 {[%clk 0:01:23.2]} 23...
cxb3 {[%clk 0:00:09]} 24. Rxa6 {[%clk 0:01:23.3]} 24... Re7 {[%clk 0:00:04.1]}
25. Qc3 {[%clk 0:01:07]} 25... Qxc3 {[%clk 0:00:04.4]} 26. Bxc3 {[%clk
0:01:08.9]} 26... bxc2 {[%clk 0:00:05.7]} 27. Nb3 {[%clk 0:01:03.9]} 27... Nd7
{[%clk 0:00:03.8]} 28. Ra2 {[%clk 0:00:47.7]} 28... Re2 {[%clk 0:00:03.1]} 29.
Nxc5 {[%clk 0:00:34]} 29... Nxc5 {[%clk 0:00:02.7]} 30. Bb4 {[%clk 0:00:35.2]}
30... c1=Q {[%clk 0:00:03.3]} 31. Rxc1 {[%clk 0:00:32.3]} 31... Rxa2 {[%clk
0:00:04.4]} 32. Bxc5 {[%clk 0:00:30.8]} 32... Rc8 {[%clk 0:00:04.9]} 33. Rd1
{[%clk 0:00:30.5]} 33... Raa8 {[%clk 0:00:04.3]} 34. Be3 {[%clk 0:00:29.4]}
34... h6 {[%clk 0:00:05]} 35. Rd7 {[%clk 0:00:27.9]} 35... Rd8 {[%clk
0:00:05.4]} 36. Rf7 {[%clk 0:00:25.4]} 36... Rf8 {[%clk 0:00:06]} 37. Rb7 {[%clk
0:00:25.5]} 37... Ra1+ {[%clk 0:00:06.7]} 38. Kg2 {[%clk 0:00:25.7]} 38... Ra2
{[%clk 0:00:07.5]} 39. Kf3 {[%clk 0:00:24]} 39... Rg8 {[%clk 0:00:06.2]} 40. h5
{[%clk 0:00:22.3]} 40... Ra5 {[%clk 0:00:06.7]} 41. Kf4 {[%clk 0:00:19.6]} 41...
Rd5 {[%clk 0:00:05.9]} 42. Kf3 {[%clk 0:00:17]} 42... Re8 {[%clk 0:00:06.7]} 43.
Rc7 {[%clk 0:00:14.6]} 43... f4 {[%clk 0:00:07.7]} 44. Bxf4 {[%clk 0:00:13.9]}
44... Rxh5 {[%clk 0:00:08.9]} 45. Kg4 {[%clk 0:00:14.9]} 45... Rd5 {[%clk
0:00:08.8]} 46. Ra7 {[%clk 0:00:15.5]} 46... h5+ {[%clk 0:00:09.9]} 47. Kf3
{[%clk 0:00:16.2]} 47... Rd3+ {[%clk 0:00:11.2]} 48. Be3 {[%clk 0:00:17.3]}
48... Kh7 {[%clk 0:00:12.3]} 49. Ke2 {[%clk 0:00:18]} 49... Rd5 {[%clk
0:00:12.5]} 50. Kf3 {[%clk 0:00:19.4]} 50... Rb5 {[%clk 0:00:12.9]} 51. Bd4
{[%clk 0:00:18.1]} 51... Rg8 {[%clk 0:00:12.5]} 52. Ke4 {[%clk 0:00:17.8]} 52...
Rb4 {[%clk 0:00:13.3]} 53. Rd7 {[%clk 0:00:16.5]} 53... Kh6 {[%clk 0:00:13.8]}
54. Kf5 {[%clk 0:00:15]} 54... Rf8+ {[%clk 0:00:13.8]} 55. Ke6 {[%clk
0:00:13.6]} 55... Rxd4 {[%clk 0:00:13.9]} 56. Rxd4 {[%clk 0:00:14.5]} 56... Rxf2
{[%clk 0:00:15.4]} 57. Ke5 {[%clk 0:00:10.9]} 57... Rf3 {[%clk 0:00:13.6]} 58.
g4 {[%clk 0:00:05]} 58... h4 {[%clk 0:00:14.6]} 59. Ke4 {[%clk 0:00:06.3]} 59...
Rf6 {[%clk 0:00:13.4]} 60. Rd5 {[%clk 0:00:07.1]} 60... g5 {[%clk 0:00:13.5]}
61. Ke5 {[%clk 0:00:05.8]} 61... Rf4 {[%clk 0:00:11.8]} 62. Rd6+ {[%clk
0:00:07.1]} 62... Kg7 {[%clk 0:00:11.6]} 63. Ra6 {[%clk 0:00:06.2]} 63... Rxg4
{[%clk 0:00:11.3]} 64. Kf5 {[%clk 0:00:07.7]} 64... Rg3 {[%clk 0:00:11.6]} 65.
Ra7+ {[%clk 0:00:08.1]} 65... Kf8 {[%clk 0:00:12.4]} 66. Rh7 {[%clk 0:00:05.4]}
66... h3 {[%clk 0:00:11.8]} 67. Kg6 {[%clk 0:00:04.6]} 67... g4 {[%clk
0:00:12.2]} 68. Kg5 {[%clk 0:00:06]} 68... Rg2 {[%clk 0:00:12.6]} 69. Kf6 {[%clk
0:00:07.4]} 69... Ke8 {[%clk 0:00:12.9]} 70. Ke6 {[%clk 0:00:06.1]} 70... Re2+
{[%clk 0:00:13]} 71. Kf5 {[%clk 0:00:07.4]} 71... Rg2 {[%clk 0:00:11.7]} 72. Ke6
{[%clk 0:00:08.7]} 72... Kd8 {[%clk 0:00:12.9]} 73. Rd7+ {[%clk 0:00:05.2]}
73... Kc8 {[%clk 0:00:13]} 74. Rh7 {[%clk 0:00:05.8]} 74... h2 {[%clk 0:00:14]}
75. Kf5 {[%clk 0:00:07.1]} 75... g3 {[%clk 0:00:14.9]} 76. Ke6 {[%clk
0:00:04.1]} 76... Rg1 {[%clk 0:00:15.7]} 77. Kf5 {[%clk 0:00:03.4]} 77... h1=Q
{[%clk 0:00:16.4]} 78. Rg7 {[%clk 0:00:03.5]} 78... Qf3+ {[%clk 0:00:16.4]} 79.
Kg6 {[%clk 0:00:03.4]} 79... Qg4+ {[%clk 0:00:17.1]} 80. Kf7 {[%clk 0:00:03.6]}
80... Qxg7+ {[%clk 0:00:18.4]} 0-1